[Event "Titled Tuesday Blitz October 12 2021"]
[White "Nogerbek, Kazybek"]
[Black "Mirzoev, Azer"]
[WhiteFideId "13710427"]
[BlackFideId "13400304"]
[WhiteElo "2436"]
[BlackElo "2525"]
[Result "1-0"]
[Round "10"]
[TimeControl "180+1"]
[Date "2021.10.12"]
[WhiteClock "0:00:46"]
[BlackClock "0:00:03"]

1. d4 {[%clk 0:03:00]}  d5 {[%clk 0:02:59]} 2. c4 {[%clk 0:03:01]}  e6 {[%clk 0:02:59]} 3. Nc3 {[%clk 0:03:01]}  Be7 {[%clk 0:02:58]} 4. Bf4 {[%clk 0:03:01]}  Nf6 {[%clk 0:02:58]} 5. e3 {[%clk 0:03:02]}  c6 {[%clk 0:02:55]} 6. Nf3 {[%clk 0:03:01]}  Nbd7 {[%clk 0:02:55]} 7. Qc2 {[%clk 0:03:01]}  O-O {[%clk 0:02:54]} 8. Rd1 {[%clk 0:03:02]}  b6 {[%clk 0:02:44]} 9. h3 {[%clk 0:03:01]}  Bb7 {[%clk 0:02:40]} 10. Bd3 {[%clk 0:03:01]}  h6 {[%clk 0:02:39]} 11. O-O {[%clk 0:03:00]}  Rc8 {[%clk 0:02:39]} 12. e4 {[%clk 0:02:57]}  dxe4 {[%clk 0:02:32]} 13. Nxe4 {[%clk 0:02:58]}  Nxe4 {[%clk 0:02:32]} 14. Bxe4 {[%clk 0:02:59]}  Nf6 {[%clk 0:02:32]} 15. Bd3 {[%clk 0:02:59]}  Bd6 {[%clk 0:02:30]} 16. Be5 {[%clk 0:02:56]}  Qe7 {[%clk 0:02:26]} 17. Qe2 {[%clk 0:02:52]}  Rfd8 {[%clk 0:02:24]} 18. Rfe1 {[%clk 0:02:51]}  c5 {[%clk 0:02:20]} 19. dxc5 {[%clk 0:02:47]}  Bxc5 {[%clk 0:02:16]} 20. b3 {[%clk 0:02:44]}  Bb4 {[%clk 0:02:16]} 21. Rf1 {[%clk 0:02:43]}  Nd7 {[%clk 0:01:59]} 22. Be4 {[%clk 0:02:38]}  Nxe5 {[%clk 0:01:53]} 23. Nxe5 {[%clk 0:02:36]}  Bd6 {[%clk 0:01:52]} 24. Bxb7 {[%clk 0:02:35]}  Qxb7 {[%clk 0:01:51]} 25. Qf3 {[%clk 0:02:35]}  Qxf3 {[%clk 0:01:51]} 26. Nxf3 {[%clk 0:02:36]}  Kf8 {[%clk 0:01:51]} 27. Rfe1 {[%clk 0:02:36]}  Bb4 {[%clk 0:01:50]} 28. Rxd8+ {[%clk 0:02:35]}  Rxd8 {[%clk 0:01:50]} 29. Rc1 {[%clk 0:02:35]}  Ke7 {[%clk 0:01:47]} 30. Kf1 {[%clk 0:02:36]}  f5 {[%clk 0:01:46]} 31. Ke2 {[%clk 0:02:35]}  Bc5 {[%clk 0:01:46]} 32. Ne5 {[%clk 0:02:34]}  Kf6 {[%clk 0:01:44]} 33. Nd3 {[%clk 0:02:34]}  Be7 {[%clk 0:01:35]} 34. Rd1 {[%clk 0:02:27]}  g5 {[%clk 0:01:34]} 35. Ne1 {[%clk 0:02:24]}  Rxd1 {[%clk 0:01:33]} 36. Kxd1 {[%clk 0:02:25]}  Ke5 {[%clk 0:01:33]} 37. Nc2 {[%clk 0:02:23]}  Ke4 {[%clk 0:01:32]} 38. Ke2 {[%clk 0:02:24]}  h5 {[%clk 0:01:28]} 39. g3 {[%clk 0:02:23]}  h4 {[%clk 0:01:21]} 40. f3+ {[%clk 0:02:23]}  Ke5 {[%clk 0:01:20]} 41. gxh4 {[%clk 0:02:21]}  gxh4 {[%clk 0:01:20]} 42. Kf2 {[%clk 0:02:12]}  Kf4 {[%clk 0:01:19]} 43. b4 {[%clk 0:02:11]}  e5 {[%clk 0:01:18]} 44. a3 {[%clk 0:02:10]}  a5 {[%clk 0:01:03]} 45. Ne3 {[%clk 0:02:10]}  axb4 {[%clk 0:00:39]} 46. Nd5+ {[%clk 0:02:09]}  Kg5 {[%clk 0:00:39]} 47. axb4 {[%clk 0:02:10]}  Bd6 {[%clk 0:00:39]} 48. Ke3 {[%clk 0:02:05]}  Bf8 {[%clk 0:00:38]} 49. f4+ {[%clk 0:01:58]}  exf4+ {[%clk 0:00:38]} 50. Kf3 {[%clk 0:01:58]}  Bd6 {[%clk 0:00:38]} 51. b5 {[%clk 0:01:37]}  Bc5 {[%clk 0:00:38]} 52. Nxf4 {[%clk 0:01:38]}  Kf6 {[%clk 0:00:35]} 53. Nd3 {[%clk 0:01:38]}  Bd6 {[%clk 0:00:34]} 54. Ke3 {[%clk 0:01:36]}  Be5 {[%clk 0:00:24]} 55. c5 {[%clk 0:01:30]}  bxc5 {[%clk 0:00:24]} 56. Nxc5 {[%clk 0:01:31]}  Bc7 {[%clk 0:00:22]} 57. Kd4 {[%clk 0:01:24]}  Bb6 {[%clk 0:00:18]} 58. Kd5 {[%clk 0:01:24]}  Kg5 {[%clk 0:00:17]} 59. Kc6 {[%clk 0:01:12]}  Ba7 {[%clk 0:00:05]} 60. Nd3 {[%clk 0:00:55]}  f4 {[%clk 0:00:04]} 61. Ne5 {[%clk 0:00:48]}  Kf5 {[%clk 0:00:03]} 62. Kd5 {[%clk 0:00:46]} 1-0


[Site "https://www.chess.com"]

[Event "Titled Tuesday Blitz October 12 2021"]
[White "Nozdrachev, Leonid"]
[Black "Yaksin, Oleg"]
[WhiteFideId "24113433"]
[BlackFideId "24105880"]
[WhiteElo "2124"]
[BlackElo "2256"]
[Result "0-1"]
[Round "10"]
[TimeControl "180+1"]
[Date "2021.10.12"]
[WhiteClock "0:00:01"]
[BlackClock "0:00:04"]

1. e4 {[%clk 0:03:00]}  c5 {[%clk 0:02:53]} 2. c3 {[%clk 0:03:00]}  Nf6 {[%clk 0:02:52]} 3. e5 {[%clk 0:03:00]}  Nd5 {[%clk 0:02:53]} 4. d4 {[%clk 0:03:00]}  cxd4 {[%clk 0:02:53]} 5. Nf3 {[%clk 0:03:01]}  Nc6 {[%clk 0:02:52]} 6. Bc4 {[%clk 0:03:01]}  Nb6 {[%clk 0:02:49]} 7. Bb3 {[%clk 0:03:00]}  d6 {[%clk 0:02:46]} 8. exd6 {[%clk 0:02:58]}  Qxd6 {[%clk 0:02:46]} 9. O-O {[%clk 0:02:57]}  e6 {[%clk 0:02:42]} 10. cxd4 {[%clk 0:02:57]}  Be7 {[%clk 0:02:42]} 11. Nc3 {[%clk 0:02:57]}  O-O {[%clk 0:02:42]} 12. a3 {[%clk 0:02:56]}  Rd8 {[%clk 0:02:33]} 13. Be3 {[%clk 0:02:55]}  Nd5 {[%clk 0:02:30]} 14. Nxd5 {[%clk 0:02:54]}  exd5 {[%clk 0:02:30]} 15. Qd3 {[%clk 0:02:53]}  Bf6 {[%clk 0:02:28]} 16. Rac1 {[%clk 0:02:49]}  Bg4 {[%clk 0:02:26]} 17. Kh1 {[%clk 0:02:38]}  Bxf3 {[%clk 0:02:18]} 18. gxf3 {[%clk 0:02:39]}  Ne7 {[%clk 0:02:14]} 19. Bd2 {[%clk 0:02:24]}  Nc6 {[%clk 0:02:07]} 20. Rg1 {[%clk 0:02:22]}  Nxd4 {[%clk 0:02:01]} 21. Ba2 {[%clk 0:02:20]}  Nc6 {[%clk 0:01:51]} 22. Qf5 {[%clk 0:02:09]}  Qe5 {[%clk 0:01:43]} 23. Qh3 {[%clk 0:01:57]}  Qxb2 {[%clk 0:01:32]} 24. Bb1 {[%clk 0:01:56]}  g6 {[%clk 0:01:33]} 25. Rgd1 {[%clk 0:01:44]}  Qxa3 {[%clk 0:01:29]} 26. Qg3 {[%clk 0:01:35]}  Qd6 {[%clk 0:01:23]} 27. Bf4 {[%clk 0:01:33]}  Be5 {[%clk 0:01:23]} 28. Bxe5 {[%clk 0:01:31]}  Nxe5 {[%clk 0:01:21]} 29. h4 {[%clk 0:01:30]}  Nc6 {[%clk 0:01:16]} 30. Qh3 {[%clk 0:01:26]}  Qf4 {[%clk 0:01:11]} 31. h5 {[%clk 0:01:23]}  Ne5 {[%clk 0:01:11]} 32. Rc7 {[%clk 0:01:20]}  Rab8 {[%clk 0:00:53]} 33. Ba2 {[%clk 0:01:12]}  Nd3 {[%clk 0:00:37]} 34. Rc2 {[%clk 0:01:00]}  Nb4 {[%clk 0:00:35]} 35. Rcd2 {[%clk 0:00:51]}  Nxa2 {[%clk 0:00:35]} 36. Rxa2 {[%clk 0:00:52]}  a6 {[%clk 0:00:36]} 37. Rad2 {[%clk 0:00:51]}  d4 {[%clk 0:00:35]} 38. Re2 {[%clk 0:00:48]}  d3 {[%clk 0:00:34]} 39. Re4 {[%clk 0:00:47]}  Qf5 {[%clk 0:00:32]} 40. Qg3 {[%clk 0:00:45]}  Qxh5+ {[%clk 0:00:31]} 41. Kg2 {[%clk 0:00:44]}  d2 {[%clk 0:00:31]} 42. Rxd2 {[%clk 0:00:43]}  Re8 {[%clk 0:00:22]} 43. Rd7 {[%clk 0:00:40]}  b5 {[%clk 0:00:18]} 44. Ree7 {[%clk 0:00:38]}  Qf5 {[%clk 0:00:16]} 45. Rxf7 {[%clk 0:00:33]}  Qxf7 {[%clk 0:00:16]} 46. Rxf7 {[%clk 0:00:33]}  Kxf7 {[%clk 0:00:17]} 47. Qc7+ {[%clk 0:00:33]}  Kg8 {[%clk 0:00:18]} 48. Qa7 {[%clk 0:00:29]}  Rf8 {[%clk 0:00:16]} 49. Qxa6 {[%clk 0:00:27]}  b4 {[%clk 0:00:17]} 50. Qc4+ {[%clk 0:00:26]}  Kg7 {[%clk 0:00:17]} 51. Qd4+ {[%clk 0:00:26]}  Kg8 {[%clk 0:00:16]} 52. Qd5+ {[%clk 0:00:23]}  Rf7 {[%clk 0:00:16]} 53. Qe5 {[%clk 0:00:20]}  Rbb7 {[%clk 0:00:13]} 54. Qe8+ {[%clk 0:00:20]}  Kg7 {[%clk 0:00:14]} 55. Qe5+ {[%clk 0:00:20]}  Rf6 {[%clk 0:00:14]} 56. Qd5 {[%clk 0:00:19]}  Rbf7 {[%clk 0:00:13]} 57. Qd4 {[%clk 0:00:11]}  b3 {[%clk 0:00:13]} 58. Qb2 {[%clk 0:00:10]}  Kg8 {[%clk 0:00:12]} 59. Qxb3 {[%clk 0:00:09]}  Rxf3 {[%clk 0:00:12]} 60. Qb8+ {[%clk 0:00:06]}  Rf8 {[%clk 0:00:12]} 61. Qd6 {[%clk 0:00:03]}  Rxf2+ {[%clk 0:00:12]} 62. Kg1 {[%clk 0:00:03]}  R2f5 {[%clk 0:00:12]} 63. Qe6+ {[%clk 0:00:03]}  Kg7 {[%clk 0:00:13]} 64. Qe7+ {[%clk 0:00:03]}  R8f7 {[%clk 0:00:14]} 65. Qe6 {[%clk 0:00:04]}  Rg5+ {[%clk 0:00:14]} 66. Kh2 {[%clk 0:00:03]}  Rff5 {[%clk 0:00:13]} 67. Qe7+ {[%clk 0:00:03]}  Kh6 {[%clk 0:00:14]} 68. Qe8 {[%clk 0:00:03]}  Rf2+ {[%clk 0:00:08]} 69. Kh1 {[%clk 0:00:03]}  Rf1+ {[%clk 0:00:08]} 70. Kh2 {[%clk 0:00:03]}  Rf2+ {[%clk 0:00:08]} 71. Kh1 {[%clk 0:00:04]}  Rf4 {[%clk 0:00:08]} 72. Qe1 {[%clk 0:00:02]}  Kh5 {[%clk 0:00:08]} 73. Qe2+ {[%clk 0:00:01]}  Rfg4 {[%clk 0:00:04]} 74. Kh2 {[%clk 0:00:01]}  Kh6 {[%clk 0:00:04]} 0-1


[Site "https://www.chess.com"]

[Event "Titled Tuesday Blitz October 12 2021"]
[White "Salinas Herrera, Pablo"]
[Black "Le, Tuan Minh"]
[WhiteFideId "3407128"]
[BlackFideId "12401153"]
[WhiteElo "2541"]
[BlackElo "2450"]
[Result "1/2-1/2"]
[Round "10"]
[TimeControl "180+1"]
[Date "2021.10.12"]
[WhiteClock "0:00:10"]
[BlackClock "0:00:07"]

1. e4 {[%clk 0:03:00]}  e5 {[%clk 0:02:57]} 2. Nf3 {[%clk 0:03:00]}  Nc6 {[%clk 0:02:56]} 3. Bc4 {[%clk 0:02:58]}  Nf6 {[%clk 0:02:56]} 4. Ng5 {[%clk 0:02:58]}  d5 {[%clk 0:02:55]} 5. exd5 {[%clk 0:02:59]}  Nd4 {[%clk 0:02:55]} 6. c3 {[%clk 0:02:57]}  b5 {[%clk 0:02:54]} 7. Bf1 {[%clk 0:02:58]}  Nxd5 {[%clk 0:02:22]} 8. Nxf7 {[%clk 0:02:41]}  Kxf7 {[%clk 0:02:22]} 9. cxd4 {[%clk 0:02:41]}  exd4 {[%clk 0:02:17]} 10. Qf3+ {[%clk 0:02:41]}  Nf6 {[%clk 0:01:35]} 11. Bxb5 {[%clk 0:02:39]}  Qe7+ {[%clk 0:01:24]} 12. Qe2 {[%clk 0:02:21]}  Qxe2+ {[%clk 0:01:04]} 13. Bxe2 {[%clk 0:02:21]}  Bd6 {[%clk 0:01:01]} 14. Bc4+ {[%clk 0:02:18]}  Be6 {[%clk 0:01:01]} 15. Bxe6+ {[%clk 0:02:17]}  Kxe6 {[%clk 0:01:01]} 16. d3 {[%clk 0:02:15]}  Rhe8 {[%clk 0:01:01]} 17. Nd2 {[%clk 0:01:57]}  Kd7+ {[%clk 0:00:59]} 18. Kf1 {[%clk 0:01:50]}  Re6 {[%clk 0:00:58]} 19. Nf3 {[%clk 0:01:40]}  c5 {[%clk 0:00:21]} 20. Bd2 {[%clk 0:01:40]}  Nd5 {[%clk 0:00:18]} 21. Re1 {[%clk 0:01:35]}  Rf6 {[%clk 0:00:18]} 22. Re4 {[%clk 0:01:33]}  h6 {[%clk 0:00:15]} 23. h4 {[%clk 0:01:31]}  a5 {[%clk 0:00:12]} 24. Ke2 {[%clk 0:01:13]}  a4 {[%clk 0:00:13]} 25. Rc1 {[%clk 0:00:59]}  Rb8 {[%clk 0:00:13]} 26. Rc2 {[%clk 0:00:57]}  Rf5 {[%clk 0:00:13]} 27. Rg4 {[%clk 0:00:41]}  Re8+ {[%clk 0:00:13]} 28. Kf1 {[%clk 0:00:41]}  Re7 {[%clk 0:00:11]} 29. Rc4 {[%clk 0:00:41]}  Nb6 {[%clk 0:00:07]} 30. Rc1 {[%clk 0:00:41]}  Nd5 {[%clk 0:00:08]} 31. Re1 {[%clk 0:00:40]}  Ref7 {[%clk 0:00:08]} 32. Rge4 {[%clk 0:00:35]}  Nf6 {[%clk 0:00:07]} 33. R4e2 {[%clk 0:00:34]}  Ng4 {[%clk 0:00:07]} 34. Kg1 {[%clk 0:00:32]}  Kc6 {[%clk 0:00:05]} 35. Re4 {[%clk 0:00:28]}  h5 {[%clk 0:00:05]} 36. Rc1 {[%clk 0:00:26]}  Kd5 {[%clk 0:00:05]} 37. b4 {[%clk 0:00:17]}  axb3 {[%clk 0:00:06]} 38. axb3 {[%clk 0:00:18]}  Rxf3 {[%clk 0:00:07]} 39. gxf3 {[%clk 0:00:18]}  Rxf3 {[%clk 0:00:07]} 40. Re8 {[%clk 0:00:03]}  Rxd3 {[%clk 0:00:06]} 41. Be1 {[%clk 0:00:01]}  Rxb3 {[%clk 0:00:07]} 42. Ra1 {[%clk 0:00:01]}  Ne5 {[%clk 0:00:07]} 43. Rd8 {[%clk 0:00:02]}  Nf3+ {[%clk 0:00:07]} 44. Kf1 {[%clk 0:00:02]}  Rb6 {[%clk 0:00:05]} 45. Ra7 {[%clk 0:00:01]}  d3 {[%clk 0:00:04]} 46. Rad7 {[%clk 0:00:01]}  c4 {[%clk 0:00:05]} 47. Bc3 {[%clk 0:00:02]}  Ke6 {[%clk 0:00:04]} 48. Kg2 {[%clk 0:00:02]}  Nxh4+ {[%clk 0:00:05]} 49. Kh3 {[%clk 0:00:02]}  Ng6 {[%clk 0:00:05]} 50. Rxg7 {[%clk 0:00:02]}  Nf4+ {[%clk 0:00:05]} 51. Kh4 {[%clk 0:00:03]}  Be7+ {[%clk 0:00:06]} 52. Rxe7+ {[%clk 0:00:02]}  Kxe7 {[%clk 0:00:07]} 53. Rd4 {[%clk 0:00:03]}  Ne2 {[%clk 0:00:06]} 54. Rxc4 {[%clk 0:00:03]}  Ke6 {[%clk 0:00:05]} 55. Bd2 {[%clk 0:00:03]}  Kd5 {[%clk 0:00:05]} 56. Ra4 {[%clk 0:00:03]}  Rb2 {[%clk 0:00:05]} 57. Be3 {[%clk 0:00:03]}  Kc6 {[%clk 0:00:04]} 58. Rc4+ {[%clk 0:00:04]}  Kb5 {[%clk 0:00:04]} 59. Rc8 {[%clk 0:00:04]}  Kb4 {[%clk 0:00:04]} 60. Rb8+ {[%clk 0:00:05]}  Kc3 {[%clk 0:00:04]} 61. Rd8 {[%clk 0:00:06]}  Kc2 {[%clk 0:00:04]} 62. Kxh5 {[%clk 0:00:06]}  Nc3 {[%clk 0:00:04]} 63. Kg4 {[%clk 0:00:06]}  Rb4+ {[%clk 0:00:05]} 64. Kg3 {[%clk 0:00:06]}  Rb5 {[%clk 0:00:04]} 65. Kg4 {[%clk 0:00:06]}  Nd5 {[%clk 0:00:05]} 66. Bg5 {[%clk 0:00:06]}  Nc7 {[%clk 0:00:04]} 67. f4 {[%clk 0:00:06]}  Ne6 {[%clk 0:00:04]} 68. Rd6 {[%clk 0:00:06]}  Nxg5 {[%clk 0:00:04]} 69. fxg5 {[%clk 0:00:06]}  d2 {[%clk 0:00:05]} 70. Kh5 {[%clk 0:00:06]}  d1=Q+ {[%clk 0:00:03]} 71. Rxd1 {[%clk 0:00:07]}  Kxd1 {[%clk 0:00:04]} 72. Kh6 {[%clk 0:00:07]}  Ke2 {[%clk 0:00:05]} 73. g6 {[%clk 0:00:08]}  Kf3 {[%clk 0:00:05]} 74. g7 {[%clk 0:00:09]}  Rb6+ {[%clk 0:00:06]} 75. Kh7 {[%clk 0:00:10]}  Rb7 {[%clk 0:00:06]} 76. Kh8 {[%clk 0:00:09]}  Rxg7 {[%clk 0:00:07]} 77. Kxg7 {[%clk 0:00:10]} 1/2-1/2


[Site "https://www.chess.com"]

[Event "Titled Tuesday Blitz October 12 2021"]
[White "Siva Mahadevan"]
[Black "King, Alexander"]
[WhiteFideId "25043153"]
[BlackFideId "2063620"]
[WhiteElo "2203"]
[BlackElo "2306"]
[Result "1-0"]
[Round "10"]
[TimeControl "180+1"]
[Date "2021.10.12"]
[WhiteClock "0:02:31"]
[BlackClock "0:01:05"]

1. e4 {[%clk 0:02:59]}  e5 {[%clk 0:03:00]} 2. Nf3 {[%clk 0:03:00]}  Nc6 {[%clk 0:03:00]} 3. Bb5 {[%clk 0:03:00]}  Nf6 {[%clk 0:03:01]} 4. O-O {[%clk 0:03:00]}  Nxe4 {[%clk 0:03:01]} 5. Re1 {[%clk 0:03:01]}  Nd6 {[%clk 0:03:01]} 6. Nxe5 {[%clk 0:03:02]}  Be7 {[%clk 0:03:02]} 7. Bf1 {[%clk 0:03:02]}  Nxe5 {[%clk 0:03:02]} 8. Rxe5 {[%clk 0:03:03]}  O-O {[%clk 0:03:03]} 9. d4 {[%clk 0:03:04]}  Bf6 {[%clk 0:03:03]} 10. Bd3 {[%clk 0:03:04]}  g6 {[%clk 0:02:51]} 11. Nc3 {[%clk 0:03:03]}  c6 {[%clk 0:02:39]} 12. Qf3 {[%clk 0:02:51]}  Re8 {[%clk 0:02:32]} 13. Bf4 {[%clk 0:02:50]}  Re6 {[%clk 0:02:16]} 14. Rxe6 {[%clk 0:02:44]}  dxe6 {[%clk 0:02:07]} 15. Bxd6 {[%clk 0:02:45]}  Bxd4 {[%clk 0:02:05]} 16. Bg3 {[%clk 0:02:45]}  e5 {[%clk 0:01:59]} 17. Rd1 {[%clk 0:02:43]}  Kg7 {[%clk 0:01:52]} 18. Ne4 {[%clk 0:02:29]}  f5 {[%clk 0:01:51]} 19. c3 {[%clk 0:02:29]}  fxe4 {[%clk 0:01:21]} 20. Bxe4 {[%clk 0:02:30]}  Qg5 {[%clk 0:01:21]} 21. cxd4 {[%clk 0:02:30]}  Bg4 {[%clk 0:01:21]} 22. Bxe5+ {[%clk 0:02:30]}  Kg8 {[%clk 0:01:03]} 23. Bd5+ {[%clk 0:02:30]}  cxd5 {[%clk 0:01:04]} 24. Qxd5+ {[%clk 0:02:31]}  Kf8 {[%clk 0:01:05]} 25. Bd6+ {[%clk 0:02:31]} 1-0


[Site "https://www.chess.com"]

[Event "Titled Tuesday Blitz October 12 2021"]
[White "Sviridov, Valery"]
[Black "Ghimpu, Samuel-Timotei"]
[WhiteFideId "4120680"]
[BlackFideId "1238175"]
[WhiteElo "2454"]
[BlackElo "2012"]
[Result "1-0"]
[Round "10"]
[TimeControl "180+1"]
[Date "2021.10.12"]
[WhiteClock "0:01:01"]
[BlackClock "0:00:45"]

1. d4 {[%clk 0:03:00]}  Nf6 {[%clk 0:02:58]} 2. Nf3 {[%clk 0:02:59]}  g6 {[%clk 0:02:56]} 3. c4 {[%clk 0:02:59]}  Bg7 {[%clk 0:02:56]} 4. g3 {[%clk 0:03:00]}  O-O {[%clk 0:02:56]} 5. Bg2 {[%clk 0:03:01]}  c6 {[%clk 0:02:56]} 6. O-O {[%clk 0:03:01]}  d5 {[%clk 0:02:57]} 7. cxd5 {[%clk 0:03:02]}  cxd5 {[%clk 0:02:58]} 8. Nc3 {[%clk 0:03:02]}  Ne4 {[%clk 0:02:58]} 9. Ng5 {[%clk 0:03:03]}  Nc6 {[%clk 0:02:42]} 10. Ngxe4 {[%clk 0:03:02]}  dxe4 {[%clk 0:02:41]} 11. d5 {[%clk 0:03:03]}  Nb4 {[%clk 0:02:25]} 12. Bxe4 {[%clk 0:03:01]}  Bf5 {[%clk 0:02:25]} 13. Bg2 {[%clk 0:02:55]}  Qd7 {[%clk 0:02:21]} 14. e4 {[%clk 0:02:54]}  Bh3 {[%clk 0:02:21]} 15. a3 {[%clk 0:02:53]}  Na6 {[%clk 0:02:19]} 16. Be3 {[%clk 0:02:52]}  Bxg2 {[%clk 0:02:18]} 17. Kxg2 {[%clk 0:02:53]}  Rac8 {[%clk 0:02:17]} 18. Rc1 {[%clk 0:02:47]}  Nc5 {[%clk 0:02:16]} 19. b4 {[%clk 0:02:40]}  Na6 {[%clk 0:02:01]} 20. Bd4 {[%clk 0:02:40]}  Rc4 {[%clk 0:01:58]} 21. Bxg7 {[%clk 0:02:39]}  Kxg7 {[%clk 0:01:59]} 22. Qd3 {[%clk 0:02:39]}  Rfc8 {[%clk 0:01:58]} 23. Ne2 {[%clk 0:02:40]}  Qc7 {[%clk 0:01:57]} 24. Qe3 {[%clk 0:02:35]}  Qb6 {[%clk 0:01:53]} 25. Qd3 {[%clk 0:02:19]}  Qc7 {[%clk 0:01:37]} 26. h4 {[%clk 0:02:16]}  Nb8 {[%clk 0:01:35]} 27. Rxc4 {[%clk 0:01:51]}  Qxc4 {[%clk 0:01:36]} 28. Qxc4 {[%clk 0:01:52]}  Rxc4 {[%clk 0:01:36]} 29. Kf3 {[%clk 0:01:53]}  Nd7 {[%clk 0:01:29]} 30. Rc1 {[%clk 0:01:53]}  Ne5+ {[%clk 0:01:28]} 31. Ke3 {[%clk 0:01:53]}  Ng4+ {[%clk 0:01:28]} 32. Kf3 {[%clk 0:01:53]}  Ne5+ {[%clk 0:01:28]} 33. Ke3 {[%clk 0:01:48]}  Ng4+ {[%clk 0:01:28]} 34. Kf4 {[%clk 0:01:20]}  Rxc1 {[%clk 0:01:29]} 35. Nxc1 {[%clk 0:01:21]}  Nxf2 {[%clk 0:01:30]} 36. Nb3 {[%clk 0:01:16]}  Nd3+ {[%clk 0:01:14]} 37. Ke3 {[%clk 0:01:12]}  Ne5 {[%clk 0:01:14]} 38. Na5 {[%clk 0:01:11]}  b6 {[%clk 0:01:12]} 39. Nc6 {[%clk 0:01:10]}  Nc4+ {[%clk 0:01:12]} 40. Kd3 {[%clk 0:01:10]}  Nxa3 {[%clk 0:01:13]} 41. Nxa7 {[%clk 0:01:09]}  Kf6 {[%clk 0:01:10]} 42. Nc8 {[%clk 0:01:05]}  Nb5 {[%clk 0:01:07]} 43. Nxb6 {[%clk 0:01:04]}  e5 {[%clk 0:00:45]} 44. Nc8 {[%clk 0:01:01]} 1-0


[Site "https://www.chess.com"]

[Event "Titled Tuesday Blitz October 12 2021"]
[White "Tregubov, Pavel V."]
[Black "Assaubayeva, Bibisara"]
[WhiteFideId "4115341"]
[BlackFideId "13708694"]
[WhiteElo "2423"]
[BlackElo "2232"]
[Result "1-0"]
[Round "10"]
[TimeControl "180+1"]
[Date "2021.10.12"]
[WhiteClock "0:00:36"]
[BlackClock "0:00:03"]

1. e4 {[%clk 0:03:00]}  c5 {[%clk 0:02:59]} 2. Nf3 {[%clk 0:03:01]}  d6 {[%clk 0:02:59]} 3. Bb5+ {[%clk 0:03:00]}  Nd7 {[%clk 0:02:59]} 4. Ba4 {[%clk 0:03:00]}  Nf6 {[%clk 0:02:57]} 5. O-O {[%clk 0:02:55]}  e6 {[%clk 0:02:55]} 6. Re1 {[%clk 0:02:54]}  Be7 {[%clk 0:02:54]} 7. c3 {[%clk 0:02:54]}  O-O {[%clk 0:02:48]} 8. d4 {[%clk 0:02:54]}  cxd4 {[%clk 0:02:41]} 9. cxd4 {[%clk 0:02:54]}  d5 {[%clk 0:02:41]} 10. e5 {[%clk 0:02:54]}  Ne4 {[%clk 0:02:42]} 11. Bc2 {[%clk 0:02:53]}  f5 {[%clk 0:02:39]} 12. exf6 {[%clk 0:02:53]}  Ndxf6 {[%clk 0:02:40]} 13. Ne5 {[%clk 0:02:50]}  Bb4 {[%clk 0:02:32]} 14. Re2 {[%clk 0:02:45]}  Ba5 {[%clk 0:02:02]} 15. f3 {[%clk 0:02:44]}  Nd6 {[%clk 0:02:02]} 16. Bg5 {[%clk 0:02:42]}  Bb6 {[%clk 0:01:58]} 17. Nc3 {[%clk 0:02:29]}  Nf5 {[%clk 0:01:34]} 18. Bxf5 {[%clk 0:02:29]}  exf5 {[%clk 0:01:35]} 19. Na4 {[%clk 0:02:11]}  Bc7 {[%clk 0:01:31]} 20. Qb3 {[%clk 0:02:11]}  b6 {[%clk 0:01:19]} 21. Rc1 {[%clk 0:01:58]}  Ba6 {[%clk 0:01:16]} 22. Ree1 {[%clk 0:01:48]}  Kh8 {[%clk 0:01:08]} 23. Qc2 {[%clk 0:01:44]}  Rc8 {[%clk 0:01:06]} 24. Qxf5 {[%clk 0:01:44]}  Qe8 {[%clk 0:00:49]} 25. Nc3 {[%clk 0:01:21]}  Qh5 {[%clk 0:00:34]} 26. h4 {[%clk 0:01:04]}  Rce8 {[%clk 0:00:28]} 27. g4 {[%clk 0:00:57]}  Bc8 {[%clk 0:00:10]} 28. Qf4 {[%clk 0:00:40]}  Nxg4 {[%clk 0:00:05]} 29. fxg4 {[%clk 0:00:40]}  Rxf4 {[%clk 0:00:03]} 30. gxh5 {[%clk 0:00:40]}  Rff8 {[%clk 0:00:03]} 31. Nxd5 {[%clk 0:00:37]}  Bd6 {[%clk 0:00:03]} 32. Nf7+ {[%clk 0:00:36]} 1-0


[Site "https://www.chess.com"]

[Event "Titled Tuesday Blitz October 12 2021"]
[White "Viani Antonio Dcunha"]
[Black "Urazayev, Arystanbek"]
[WhiteFideId "5027330"]
[BlackFideId "13709810"]
[WhiteElo "2366"]
[BlackElo "2321"]
[Result "1-0"]
[Round "10"]
[TimeControl "180+1"]
[Date "2021.10.12"]
[WhiteClock "0:00:05"]
[BlackClock "0:00:02"]

1. e4 {[%clk 0:03:00]}  c5 {[%clk 0:03:00]} 2. Nf3 {[%clk 0:02:59]}  e6 {[%clk 0:03:00]} 3. d4 {[%clk 0:02:58]}  cxd4 {[%clk 0:03:01]} 4. Nxd4 {[%clk 0:02:59]}  Nf6 {[%clk 0:03:02]} 5. Nc3 {[%clk 0:02:57]}  Nc6 {[%clk 0:03:02]} 6. Nxc6 {[%clk 0:02:57]}  bxc6 {[%clk 0:03:03]} 7. e5 {[%clk 0:02:57]}  Nd5 {[%clk 0:03:04]} 8. Ne4 {[%clk 0:02:58]}  Qc7 {[%clk 0:03:05]} 9. f4 {[%clk 0:02:58]}  Rb8 {[%clk 0:03:05]} 10. a3 {[%clk 0:02:25]}  Qb6 {[%clk 0:02:55]} 11. c4 {[%clk 0:02:11]}  Ne3 {[%clk 0:02:55]} 12. Qd3 {[%clk 0:02:07]}  Nf5 {[%clk 0:02:41]} 13. b4 {[%clk 0:01:56]}  c5 {[%clk 0:02:37]} 14. b5 {[%clk 0:01:50]}  h5 {[%clk 0:02:36]} 15. a4 {[%clk 0:01:47]}  a5 {[%clk 0:02:35]} 16. g3 {[%clk 0:01:41]}  Bb7 {[%clk 0:02:35]} 17. Bg2 {[%clk 0:01:41]}  h4 {[%clk 0:02:30]} 18. Bb2 {[%clk 0:01:25]}  Rd8 {[%clk 0:02:15]} 19. O-O-O {[%clk 0:01:10]}  Be7 {[%clk 0:02:04]} 20. g4 {[%clk 0:01:04]}  h3 {[%clk 0:02:04]} 21. Bxh3 {[%clk 0:01:03]}  d5 {[%clk 0:01:37]} 22. gxf5 {[%clk 0:00:57]}  dxe4 {[%clk 0:01:38]} 23. Qg3 {[%clk 0:00:57]}  exf5 {[%clk 0:01:21]} 24. Bxf5 {[%clk 0:00:52]}  g6 {[%clk 0:01:10]} 25. e6 {[%clk 0:00:45]}  Rg8 {[%clk 0:01:10]} 26. Rxd8+ {[%clk 0:00:32]}  Bxd8 {[%clk 0:01:06]} 27. Re1 {[%clk 0:00:26]}  Kf8 {[%clk 0:00:53]} 28. exf7 {[%clk 0:00:24]}  Kxf7 {[%clk 0:00:52]} 29. Bxe4 {[%clk 0:00:24]}  Bxe4 {[%clk 0:00:22]} 30. Rxe4 {[%clk 0:00:25]}  Re8 {[%clk 0:00:23]} 31. Qd3 {[%clk 0:00:23]}  Rxe4 {[%clk 0:00:16]} 32. Qxe4 {[%clk 0:00:24]}  Bf6 {[%clk 0:00:15]} 33. Qd5+ {[%clk 0:00:20]}  Kf8 {[%clk 0:00:14]} 34. Bxf6 {[%clk 0:00:17]}  Qxf6 {[%clk 0:00:15]} 35. Qxc5+ {[%clk 0:00:17]}  Kg8 {[%clk 0:00:16]} 36. Qe5 {[%clk 0:00:14]}  Qh4 {[%clk 0:00:14]} 37. b6 {[%clk 0:00:11]}  Qxh2 {[%clk 0:00:14]} 38. Qd5+ {[%clk 0:00:09]}  Kg7 {[%clk 0:00:12]} 39. b7 {[%clk 0:00:09]}  Qxf4+ {[%clk 0:00:12]} 40. Kc2 {[%clk 0:00:09]}  Qf2+ {[%clk 0:00:09]} 41. Kc3 {[%clk 0:00:07]}  Qe3+ {[%clk 0:00:07]} 42. Qd3 {[%clk 0:00:06]}  Qb6 {[%clk 0:00:02]} 43. Qd4+ {[%clk 0:00:05]} 1-0


[Site "https://www.chess.com"]